fUST/lending_fUST_20250615
["ID","MTS","AMOUNT","RATE_DAILY","PERIOD"]
[365908388,1749982238716,-460.0,0.00020455,2]
[365908390,1749982238726,-1802.56,0.00020455,2]
[365908392,1749982238735,-764.98,0.00020456,2]
[365908394,1749982238745,-460.0,0.00020456,2]
[365908396,1749982238755,-460.0,0.00020456,2]
[365908398,1749982238765,-460.0,0.00020456,2]
[365908400,1749982238774,-460.0,0.00020456,2]
[365908428,1749982239031,-460.0,0.00020456,2]
[365908430,1749982239044,-1282.49,0.00020456,2]
[365908432,1749982239054,-460.0,0.00020456,2]
[365908434,1749982239064,-1326.37,0.00020456,2]
[365908436,1749982239074,-1616.2,0.00020456,2]
[365908438,1749982239084,-460.0,0.00020456,2]
[365908440,1749982239093,-460.0,0.00020456,2]
[365908442,1749982239103,-567.81,0.00020456,2]
[365908444,1749982239113,-463.50868858,0.00020456,2]
[365908446,1749982239123,-460.0,0.00020456,2]
[365908448,1749982239132,-460.0,0.00020456,2]
[365908450,1749982239142,-460.0,0.00020456,2]
[365908451,1749982239152,-460.0,0.00020456,2]
[365908452,1749982239162,-460.0,0.00020456,2]
[365908454,1749982239171,-460.0,0.00020456,2]
[365908456,1749982239180,-460.0,0.00020456,2]
[365908458,1749982239192,-736.44,0.00020456,2]
[365908460,1749982239202,-460.0,0.00020456,2]
[365908462,1749982239211,-500.0,0.00020456,2]
[365908464,1749982239220,-500.0,0.00020456,2]
[365908466,1749982239230,-460.0,0.00020456,2]
[365908468,1749982239239,-460.0,0.00020456,2]
[365908469,1749982239248,-460.0,0.00020456,2]
[365908470,1749982239258,-460.0,0.00020456,2]
[365908471,1749982239267,-460.0,0.00020456,2]
[365908472,1749982239276,-221.83493593,0.00020456,2]
[365908473,1749982239297,-430.0,0.00020455,2]
[365908474,1749982239307,-238.16506407,0.00020456,2]
[365908475,1749982239316,-460.0,0.00020456,2]
[365908476,1749982239325,-460.0,0.00020456,2]
[365908477,1749982239334,-460.0,0.00020456,2]
[365908479,1749982239343,-500.0,0.00020456,2]
[365908481,1749982239353,-500.0,0.00020456,2]
[365908483,1749982239363,-500.0,0.00020456,2]
[365908485,1749982239372,-275.31877021,0.00020456,2]
[365908487,1749982239382,-500.0,0.00020456,2]
[365908489,1749982239391,-500.0,0.00020456,2]
[365908491,1749982239401,-500.0,0.00020456,2]
[365908493,1749982239411,-500.0,0.00020456,2]
[365908495,1749982239421,-500.0,0.00020456,2]
[365908497,1749982239431,-500.0,0.00020456,2]
[365908499,1749982239440,-500.0,0.00020456,2]
[365908501,1749982239449,-500.0,0.00020456,2]
[365908502,1749982239458,-500.0,0.00020456,2]
[365908503,1749982239468,-460.0,0.00020456,2]
[365908504,1749982239477,-460.0,0.00020456,2]
[365908505,1749982239491,-460.0,0.00020457,2]
[365908506,1749982239501,-460.0,0.00020457,2]
[365908507,1749982239510,-460.0,0.00020457,2]
[365908508,1749982239520,-460.0,0.00020457,2]
[365908509,1749982239530,-440.0,0.00020457,2]
[365908510,1749982239541,-410.0,0.00020457,2]
[365908511,1749982239550,-460.0,0.00020457,2]
[365908512,1749982239561,-460.0,0.00020457,2]
[365908513,1749982239571,-420.0,0.00020457,2]
[365908514,1749982239581,-237.03695198,0.00020457,2]
[365908515,1749982239590,-460.0,0.00020457,2]
[365908516,1749982239599,-400.0,0.00020457,2]
[365908517,1749982239609,-420.0,0.00020457,2]
[365908518,1749982239619,-460.0,0.00020457,2]
[365908519,1749982239628,-460.0,0.00020457,2]
[365908520,1749982239638,-397.29061457,0.00020457,2]
[365908521,1749982239647,-580.0,0.00020457,2]
[365908522,1749982239657,-460.0,0.00020457,2]
[365908523,1749982239667,-460.0,0.00020457,2]
[365908524,1749982239677,-440.0,0.00020457,2]
[365908525,1749982239686,-460.0,0.00020457,2]
[365908526,1749982239695,-460.0,0.00020457,2]
[365908527,1749982239705,-440.0,0.00020457,2]
[365908528,1749982239715,-400.0,0.00020457,2]
[365908529,1749982239725,-460.0,0.00020457,2]
[365908530,1749982239735,-460.0,0.00020457,2]
[365908531,1749982239744,-372.83891976,0.00020457,2]
[365908532,1749982239754,-460.0,0.00020457,2]
[365908533,1749982239763,-460.0,0.00020457,2]
[365908534,1749982239772,-460.0,0.00020457,2]
[365908535,1749982239782,-460.0,0.00020457,2]
[365908536,1749982239791,-460.0,0.00020457,2]
[365908537,1749982239801,-460.0,0.00020457,2]
[365908538,1749982239811,-440.0,0.00020457,2]
[365908539,1749982239822,-460.0,0.00020457,2]
[365908540,1749982239831,-420.0,0.00020457,2]
[365908541,1749982239840,-460.0,0.00020457,2]
[365908542,1749982239850,-460.0,0.00020457,2]
[365908543,1749982239860,-407.25886808,0.00020457,2]
[365908544,1749982239869,-460.0,0.00020457,2]
[365908545,1749982239879,-373.48685481,0.00020457,2]
[365908546,1749982239888,-460.0,0.00020457,2]
[365908547,1749982239898,-460.0,0.00020457,2]
[365908548,1749982239907,-460.0,0.00020457,2]
[365908549,1749982239917,-460.0,0.00020457,2]
[365908550,1749982239927,-500.0,0.00020457,2]
[365908551,1749982239938,-420.0,0.00020457,2]
[365908552,1749982239948,-460.0,0.00020457,2]
[365908553,1749982239958,-460.0,0.00020457,2]
[365908554,1749982239967,-460.0,0.00020457,2]
[365908555,1749982239977,-460.0,0.00020457,2]
[365908556,1749982239986,-460.0,0.00020457,2]
[365908557,1749982239996,-460.0,0.00020457,2]
[365908558,1749982240005,-420.0,0.00020457,2]
[365908559,1749982240015,-460.0,0.00020457,2]
[365908561,1749982240025,-460.0,0.00020457,2]
[365908563,1749982240034,-460.0,0.00020457,2]
[365908564,1749982240044,-460.0,0.00020457,2]
[365908566,1749982240053,-460.0,0.00020457,2]
[365908567,1749982240062,-592.4,0.00020457,2]
[365908568,1749982240072,-460.0,0.00020457,2]
[365908569,1749982240082,-460.0,0.00020457,2]
[365908570,1749982240092,-460.0,0.00020457,2]
[365908571,1749982240102,-460.0,0.00020457,2]
[365908572,1749982240112,-460.0,0.00020457,2]
[365908573,1749982240123,-460.0,0.00020457,2]
[365908574,1749982240132,-460.0,0.00020457,2]
[365908575,1749982240142,-460.0,0.00020457,2]
[365908576,1749982240153,-460.0,0.00020457,2]
[365908577,1749982240163,-460.0,0.00020457,2]
[365908578,1749982240172,-460.0,0.00020457,2]
[365908579,1749982240182,-460.0,0.00020457,2]
[365908580,1749982240191,-460.0,0.00020457,2]
[365908581,1749982240201,-460.0,0.00020457,2]
[365908582,1749982240210,-460.0,0.00020457,2]
[365908583,1749982240220,-460.0,0.00020457,2]
[365908584,1749982240230,-335.46454655,0.00020457,2]
[365908585,1749982240239,-460.0,0.00020457,2]
[365908586,1749982240249,-535.6537343,0.00020457,2]
[365908587,1749982240258,-460.0,0.00020457,2]
[365908588,1749982240267,-460.0,0.00020457,2]
[365908589,1749982240278,-460.0,0.00020457,2]
[365908590,1749982240287,-460.0,0.00020457,2]
[365908591,1749982240297,-460.0,0.00020457,2]
[365908593,1749982240306,-460.0,0.00020457,2]
[365908595,1749982240316,-460.0,0.00020457,2]
[365908597,1749982240325,-460.0,0.00020457,2]
[365908599,1749982240335,-460.0,0.00020457,2]
[365908601,1749982240344,-460.0,0.00020457,2]
[365908603,1749982240353,-460.0,0.00020457,2]
[365908605,1749982240363,-350.19880959,0.00020457,2]
[365908607,1749982240372,-395.04103203,0.00020457,2]
[365908609,1749982240381,-410.11199095,0.00020457,2]
[365908611,1749982240391,-460.0,0.00020457,2]
[365908613,1749982240400,-414.68534069,0.00020457,2]
[365908615,1749982240410,-460.0,0.00020457,2]
[365908617,1749982240419,-440.0,0.00020457,2]
[365908619,1749982240429,-460.0,0.00020457,2]
[365908621,1749982240439,-420.0,0.00020457,2]
[365908623,1749982240448,-460.0,0.00020457,2]
[365908625,1749982240457,-460.0,0.00020457,2]
[365908627,1749982240467,-460.0,0.00020457,2]
[365908629,1749982240476,-460.0,0.00020457,2]
[365908631,1749982240486,-460.0,0.00020457,2]
[365908633,1749982240497,-460.0,0.00020457,2]
[365908635,1749982240507,-460.0,0.00020457,2]
[365908637,1749982240516,-393.60472095,0.00020457,2]
[365908639,1749982240525,-460.0,0.00020457,2]
[365908641,1749982240536,-460.0,0.00020457,2]
[365908643,1749982240546,-460.0,0.00020457,2]
[365908645,1749982240555,-460.0,0.00020457,2]
[365908647,1749982240565,-421.21475966,0.00020457,2]
[365908649,1749982240577,-460.0,0.00020457,2]
[365908651,1749982240588,-442.95123552,0.00020457,2]
[365908653,1749982240597,-460.0,0.00020457,2]
[365908655,1749982240606,-460.0,0.00020457,2]
[365908657,1749982240616,-460.0,0.00020457,2]
[365908659,1749982240625,-460.0,0.00020457,2]
[365908661,1749982240634,-460.0,0.00020457,2]
[365908663,1749982240644,-460.0,0.00020457,2]
[365908665,1749982240653,-460.0,0.00020457,2]
[365908667,1749982240663,-460.0,0.00020457,2]
[365908669,1749982240672,-460.0,0.00020457,2]
[365908671,1749982240681,-420.0,0.00020457,2]
[365908673,1749982240691,-460.0,0.00020457,2]
[365908675,1749982240700,-460.0,0.00020457,2]
[365908677,1749982240709,-460.0,0.00020457,2]
[365908679,1749982240718,-519.12231042,0.00020457,2]
[365908681,1749982240727,-460.0,0.00020457,2]
[365908683,1749982240737,-201.085647,0.00020457,2]
[365908685,1749982240747,-460.0,0.00020457,2]
[365908688,1749982240756,-460.0,0.00020457,2]
[365908690,1749982240765,-460.0,0.00020457,2]
[365908692,1749982240776,-460.0,0.00020457,2]
[365908694,1749982240785,-465.54815844,0.00020457,2]
[365908696,1749982240795,-460.0,0.00020457,2]
[365908698,1749982240804,-460.0,0.00020457,2]
[365908700,1749982240812,-290.32208377,0.00020457,2]
[365908702,1749982240822,-440.0,0.00020458,2]
[365908704,1749982240832,-460.0,0.00020458,2]
[365908706,1749982240841,-460.0,0.00020458,2]
[365908708,1749982240850,-460.0,0.00020458,2]
[365908710,1749982240859,-460.0,0.00020458,2]
[365908712,1749982240868,-460.0,0.00020458,2]
[365908714,1749982240877,-699.71,0.00020458,2]
[365908716,1749982240886,-460.0,0.00020458,2]
[365908718,1749982240896,-460.0,0.00020458,2]
[365908720,1749982240905,-460.0,0.00020458,2]
[365908722,1749982240914,-460.0,0.00020458,2]
[365908724,1749982240924,-463.38458235,0.00020458,2]
[365908726,1749982240934,-500.0,0.00020458,2]
[365908728,1749982240943,-318.26145213,0.00020458,2]
[365908730,1749982240952,-460.0,0.00020458,2]
[365908732,1749982240961,-460.0,0.00020459,2]
[365908734,1749982240970,-460.0,0.00020459,2]
[365908736,1749982240980,-460.0,0.00020459,2]
[365908738,1749982240990,-500.0,0.00020459,2]
[365908740,1749982241000,-460.0,0.00020459,2]
[365908742,1749982241008,-460.0,0.00020459,2]
[365908744,1749982241017,-460.0,0.00020459,2]
[365908746,1749982241027,-460.0,0.00020459,2]
[365908748,1749982241036,-460.0,0.00020459,2]
[365908750,1749982241045,-460.0,0.00020459,2]
[365908752,1749982241055,-460.0,0.00020459,2]
[365908754,1749982241064,-460.0,0.00020459,2]
[365908756,1749982241077,-460.0,0.00020459,2]
[365908758,1749982241086,-400.0,0.00020459,2]
[365908760,1749982241095,-460.0,0.00020459,2]
[365908762,1749982241104,-460.0,0.00020459,2]
[365908764,1749982241114,-460.0,0.00020459,2]
[365908766,1749982241123,-460.0,0.00020459,2]
[365908768,1749982241133,-460.0,0.00020459,2]
[365908770,1749982241142,-500.0,0.00020459,2]
[365908772,1749982241151,-460.0,0.00020459,2]
[365908774,1749982241160,-460.0,0.00020459,2]
[365908776,1749982241170,-460.0,0.00020459,2]
[365908778,1749982241179,-460.0,0.00020459,2]
[365908780,1749982241188,-460.0,0.00020459,2]
[365908782,1749982241198,-500.0,0.00020459,2]
[365908785,1749982241209,-500.0,0.00020459,2]
[365908787,1749982241218,-460.0,0.0002046,2]
[365908789,1749982241228,-460.0,0.0002046,2]
[365908791,1749982241237,-460.0,0.0002046,2]
[365908793,1749982241246,-375.74512728,0.0002046,2]
[365908795,1749982241257,-460.0,0.0002046,2]
[365908797,1749982241266,-460.0,0.0002046,2]
[365908799,1749982241276,-410.0,0.0002046,2]
[365908801,1749982241285,-460.0,0.0002046,2]
[365908803,1749982241295,-460.0,0.0002046,2]
[365908805,1749982241304,-460.0,0.0002046,2]
[365908807,1749982241314,-460.0,0.0002046,2]
[365908809,1749982241324,-460.0,0.0002046,2]
[365908811,1749982241333,-460.0,0.0002046,2]
[365908813,1749982241342,-460.0,0.0002046,2]
[365908815,1749982241351,-460.0,0.0002046,2]
[365908817,1749982241360,-388.87838009,0.0002046,2]
[365908819,1749982241369,-460.0,0.0002046,2]
[365908821,1749982241378,-420.0,0.0002046,2]
[365908823,1749982241387,-460.0,0.0002046,2]
[365908825,1749982241396,-460.0,0.0002046,2]
[365908827,1749982241405,-460.0,0.0002046,2]
[365908829,1749982241414,-347.85841043,0.0002046,2]
[365908831,1749982241423,-460.0,0.0002046,2]
[365908833,1749982241432,-1210.27,0.0002046,2]
[365908835,1749982241441,-460.0,0.0002046,2]
[365908837,1749982241450,-460.0,0.0002046,2]
[365908839,1749982241461,-460.0,0.0002046,2]
[365908841,1749982241470,-460.0,0.0002046,2]
[365908843,1749982241479,-660.9,0.0002046,2]
[365908845,1749982241488,-825.24,0.0002046,2]
[365908847,1749982241502,-460.0,0.0002046,2]
[365908849,1749982241511,-460.0,0.0002046,2]
[365908851,1749982241520,-460.0,0.0002046,2]
[365908853,1749982241531,-460.0,0.0002046,2]
[365908855,1749982241542,-706.77,0.0002046,2]
[365908857,1749982241551,-460.0,0.0002046,2]
[365908860,1749982241561,-460.0,0.0002046,2]
[365908862,1749982241571,-460.0,0.0002046,2]
[365908864,1749982241583,-256.70956453,0.0002046,2]
[365908866,1749982241593,-830.57,0.0002046,2]
[365908868,1749982241603,-460.0,0.0002046,2]
[365908870,1749982241612,-1854.62,0.0002046,2]
[365908872,1749982241621,-460.0,0.00020461,2]
[365908874,1749982241630,-460.0,0.00020461,2]
[365908876,1749982241641,-460.0,0.00020461,2]
[365908878,1749982241650,-460.0,0.00020461,2]
[365908880,1749982241659,-460.0,0.00020461,2]
[365908882,1749982241668,-460.0,0.00020461,2]
[365908884,1749982241678,-460.0,0.00020461,2]
[365908886,1749982241686,-460.0,0.00020461,2]
[365908888,1749982241696,-460.0,0.00020461,2]
[365908890,1749982241705,-460.0,0.00020461,2]
[365908892,1749982241714,-400.0,0.00020461,2]
[365908894,1749982241723,-500.0,0.00020473,2]
[365908896,1749982241733,-500.0,0.00020473,2]
[365908898,1749982241742,-393.59750519,0.00020473,2]
[365908900,1749982241751,-500.0,0.00020473,2]
[365908902,1749982241761,-500.0,0.00020473,2]
[365908904,1749982241770,-500.0,0.00020473,2]
[365908906,1749982241781,-500.0,0.00020473,2]
[365908908,1749982241791,-500.0,0.00020473,2]
[365908910,1749982241800,-500.0,0.00020473,2]
[365908912,1749982241809,-305.239,0.00020528,2]
[365908914,1749982241819,-627.35538254,0.00020666,2]
[365908916,1749982241828,-500.0,0.00020722,2]
[365908918,1749982241842,-171.32,0.00020724,3]
[365908920,1749982241851,-513.97,0.00020724,3]
[365908922,1749982241861,-460.0,0.00020729,2]
[365908924,1749982241871,-460.0,0.00020729,2]
[365908927,1749982241880,-460.0,0.00020729,2]
[365908929,1749982241890,-460.0,0.00020729,2]
[365908931,1749982241900,-987.01,0.00020729,2]
[365908933,1749982241909,-840.69,0.00020729,2]
[365908935,1749982241919,-801.24,0.00020729,2]
[365908937,1749982241928,-460.0,0.00020729,2]
[365908939,1749982241938,-1802.56,0.00020729,2]
[365908941,1749982241947,-764.98,0.0002073,2]
[365908943,1749982241957,-460.0,0.0002073,2]
[365908945,1749982241966,-1282.49,0.0002073,2]
[365908947,1749982241975,-1326.37,0.0002073,2]
[365908949,1749982241985,-1616.2,0.0002073,2]
[365908951,1749982241994,-330.0,0.0002073,2]
[365908953,1749982242004,-567.81,0.0002073,2]
[365908955,1749982242014,-460.0,0.0002073,2]
[365908957,1749982242023,-460.0,0.0002073,2]
[365908959,1749982242033,-460.0,0.0002073,2]
[365908961,1749982242042,-460.0,0.0002073,2]
[365908963,1749982242051,-460.0,0.0002073,2]
[365908965,1749982242062,-736.44,0.0002073,2]
[365908967,1749982242072,-500.0,0.0002073,2]
[365908969,1749982242081,-460.0,0.0002073,2]
[365908971,1749982242093,-460.0,0.0002073,2]
[365908973,1749982242103,-460.0,0.0002073,2]
[365908975,1749982242112,-460.0,0.0002073,2]
[365908977,1749982242122,-337.59566668,0.00020731,2]
[365908979,1749982242131,-440.0,0.00020731,2]
[365908981,1749982242141,-460.0,0.00020731,2]
[365908983,1749982242151,-460.0,0.00020731,2]
[365908986,1749982242160,-551.44157898,0.00020731,2]
[365908987,1749982242170,-192.08298,0.00020731,2]
[365908989,1749982242179,-440.0,0.00020731,2]
[365908991,1749982242189,-592.4,0.00020731,2]
[365908994,1749982242199,-440.0,0.00020731,2]
[365908996,1749982242208,-400.0,0.00020731,2]
[365908998,1749982242218,-460.0,0.00020731,2]
[365909014,1749982242352,-460.0,0.00020731,2]
[365909016,1749982242363,-460.0,0.00020731,2]
[365909018,1749982242373,-460.0,0.00020731,2]
[365909020,1749982242383,-561.33,0.00020731,2]
[365909022,1749982242393,-460.0,0.00020731,2]
[365909024,1749982242403,-460.0,0.00020731,2]
[365909026,1749982242412,-460.0,0.00020731,2]
[365909028,1749982242422,-411.28623729,0.00020731,2]
[365909030,1749982242432,-460.0,0.00020731,2]
[365909032,1749982242443,-460.0,0.00020731,2]
[365909034,1749982242452,-460.0,0.00020731,2]
[365909036,1749982242461,-460.0,0.00020731,2]
[365909038,1749982242471,-460.0,0.00020731,2]
[365909040,1749982242480,-699.71,0.00020732,2]
[365909042,1749982242489,-460.0,0.00020732,2]
[365909044,1749982242502,-460.0,0.00020733,2]
[365909046,1749982242511,-460.0,0.00020733,2]
[365909048,1749982242522,-460.0,0.00020733,2]
[365909050,1749982242532,-460.0,0.00020733,2]
[365909052,1749982242542,-460.0,0.00020733,2]
[365909054,1749982242552,-460.0,0.00020733,2]
[365909056,1749982242561,-500.0,0.00020733,2]
[365909059,1749982242572,-440.0,0.00020733,2]
[365909061,1749982242583,-554.30399615,0.00020733,2]
[365909063,1749982242593,-440.0,0.00020733,2]
[365909065,1749982242602,-500.0,0.00020733,2]
[365909067,1749982242612,-275.21210443,0.00020734,2]
[365909069,1749982242621,-1210.27,0.00020734,2]
[365909071,1749982242630,-460.0,0.00020734,2]
[365909073,1749982242640,-565.80700809,0.00020734,2]
[365909075,1749982242651,-660.9,0.00020734,2]
[365909077,1749982242660,-825.24,0.00020734,2]
[365909079,1749982242670,-460.0,0.00020734,2]
[365909081,1749982242680,-460.0,0.00020734,2]
[365909083,1749982242689,-706.77,0.00020734,2]
[365909085,1749982242699,-460.0,0.00020734,2]
[365909087,1749982242708,-830.57,0.00020734,2]
[365909089,1749982242718,-1854.62,0.00020734,2]
[365909091,1749982242727,-514.43413937,0.00020735,2]
[365909093,1749982242737,-155.0,0.00020735,2]
[365909095,1749982242747,-500.0,0.00020885,2]
[365909097,1749982242757,-462.021599,0.00020885,2]
[365909099,1749982242766,-1096.11511259,0.000209,4]
[365909101,1749982242776,-802.3234972,0.00020905,2]
[365909103,1749982242785,-460.0,0.00021003,2]
[365909106,1749982242795,-448.21142772,0.00021003,2]
[365909108,1749982242807,-460.0,0.00021003,2]
[365909109,1749982242816,-987.01,0.00021003,2]
[365909112,1749982242826,-840.69,0.00021003,2]
[365909114,1749982242837,-801.24,0.00021003,2]
[365909116,1749982242848,-460.0,0.00021003,2]
[365909117,1749982242858,-1802.56,0.00021003,2]
[365909120,1749982242869,-764.98,0.00021004,2]
[365909122,1749982242878,-460.0,0.00021004,2]
[365909124,1749982242886,-1282.49,0.00021004,2]
[365909126,1749982242896,-1326.37,0.00021004,2]
[365909128,1749982242905,-1616.2,0.00021004,2]
[365909130,1749982242914,-567.81,0.00021004,2]
[365909132,1749982242923,-460.0,0.00021004,2]
[365909134,1749982242933,-460.0,0.00021004,2]
[365909136,1749982242942,-460.0,0.00021004,2]
[365909138,1749982242951,-460.0,0.00021004,2]
[365909140,1749982242960,-460.0,0.00021004,2]
[365909142,1749982242971,-736.44,0.00021004,2]
[365909144,1749982242980,-504.13042137,0.00021004,2]
[365909146,1749982242990,-460.0,0.00021004,2]
[365909148,1749982242999,-460.0,0.00021004,2]
[365909150,1749982243008,-460.0,0.00021004,2]
[365909152,1749982243018,-460.0,0.00021004,2]
[365909155,1749982243028,-169.73,0.00021005,2]
[365909157,1749982243038,-592.4,0.00021005,2]
[365909159,1749982243047,-576.84187986,0.00021005,2]
[365909161,1749982243056,-500.0,0.00021005,2]
[365909163,1749982243066,-460.0,0.00021005,2]
[365909165,1749982243075,-460.0,0.00021005,2]
[365909167,1749982243085,-460.0,0.00021005,2]
[365909169,1749982243094,-460.0,0.00021005,2]
[365909171,1749982243103,-460.0,0.00021005,2]
[365909173,1749982243113,-460.0,0.00021005,2]
[365909175,1749982243122,-460.0,0.00021005,2]
[365909177,1749982243132,-699.71,0.00021006,2]
[365909179,1749982243141,-460.0,0.00021007,2]
[365909181,1749982243151,-460.0,0.00021007,2]
[365909183,1749982243161,-460.0,0.00021007,2]
[365909185,1749982243170,-460.0,0.00021007,2]
[365909187,1749982243180,-460.0,0.00021007,2]
[365909189,1749982243190,-460.0,0.00021007,2]
[365909191,1749982243199,-1210.27,0.00021008,2]
[365909193,1749982243208,-460.0,0.00021008,2]
[365909195,1749982243217,-660.9,0.00021008,2]
[365909197,1749982243227,-825.24,0.00021008,2]
[365909199,1749982243236,-460.0,0.00021008,2]
[365909201,1749982243246,-499.72976915,0.00021008,2]
[365909203,1749982243256,-706.77,0.00021008,2]
[365909205,1749982243265,-830.57,0.00021008,2]
[365909206,1749982243274,-1854.62,0.00021008,2]
[365909207,1749982243283,-387.7907368,0.00021011,2]
[365909208,1749982243293,-1000.0,0.00021021,2]
[365909209,1749982243302,-500.0,0.00021021,2]
[365909210,1749982243312,-521.56263175,0.00021021,2]
[365909211,1749982243321,-500.0,0.00021021,2]
[365909212,1749982243330,-850.91645216,0.00021021,2]
[365909213,1749982243341,-1096.11511254,0.00021072,4]
[365909214,1749982243351,-4321.84,0.00021075,2]
[365909215,1749982243360,-1096.11511254,0.00021245,4]
[365909216,1749982243369,-440.0,0.00021277,2]
[365909217,1749982243378,-460.0,0.00021277,2]
[365909218,1749982243388,-987.01,0.00021277,2]
[365909219,1749982243398,-840.69,0.00021277,2]
[365909220,1749982243407,-801.24,0.00021277,2]
[365909222,1749982243416,-460.0,0.00021277,2]
[365909223,1749982243426,-1802.56,0.00021277,2]
[365909225,1749982243435,-764.98,0.00021278,2]
[365909227,1749982243444,-460.0,0.00021278,2]
[365909229,1749982243453,-1282.49,0.00021278,2]
[365909231,1749982243463,-1326.37,0.00021278,2]
[365909233,1749982243472,-1616.2,0.00021278,2]
[365909235,1749982243482,-567.81,0.00021278,2]
[365909237,1749982243496,-460.0,0.00021278,2]
[365909239,1749982243506,-460.0,0.00021278,2]
[365909241,1749982243515,-460.0,0.00021278,2]
[365909243,1749982243524,-460.0,0.00021278,2]
[365909245,1749982243535,-736.44,0.00021278,2]
[365909247,1749982243544,-294.09,0.00021278,2]
[365909249,1749982243554,-460.0,0.00021278,2]
[365909251,1749982243563,-460.0,0.00021278,2]
[365909253,1749982243574,-592.4,0.00021279,2]
[365909255,1749982243584,-460.0,0.00021279,2]
[365909257,1749982243593,-460.0,0.00021279,2]
[365909259,1749982243602,-460.0,0.00021279,2]
[365909261,1749982243611,-460.0,0.00021279,2]
[365909263,1749982243621,-460.0,0.00021279,2]
[365909265,1749982243631,-460.0,0.00021279,2]
[365909267,1749982243640,-460.0,0.00021279,2]
[365909269,1749982243649,-699.71,0.0002128,2]
[365909271,1749982243659,-460.0,0.00021281,2]
[365909273,1749982243669,-460.0,0.00021281,2]
[365909275,1749982243679,-460.0,0.00021281,2]
[365909277,1749982243688,-460.0,0.00021281,2]
[365909279,1749982243697,-460.0,0.00021281,2]
[365909281,1749982243707,-460.0,0.00021281,2]
[365909283,1749982243717,-160.0,0.00021282,2]
[365909285,1749982243726,-1210.27,0.00021282,2]
[365909287,1749982243736,-460.0,0.00021282,2]
[365909289,1749982243745,-660.9,0.00021282,2]
[365909291,1749982243755,-825.24,0.00021282,2]
[365909293,1749982243764,-460.0,0.00021282,2]
[365909295,1749982243774,-706.77,0.00021282,2]
[365909297,1749982243784,-830.57,0.00021282,2]
[365909299,1749982243793,-1854.62,0.00021282,2]
[365909301,1749982243803,-714.13,0.000213,2]
[365909303,1749982243813,-1096.11511254,0.00021417,5]
[365909305,1749982243822,-1000.0,0.00021433,2]
[365909307,1749982243832,-1295.71239947,0.00021454,2]
[365909309,1749982243842,-460.0,0.00021551,2]
[365909311,1749982243851,-987.01,0.00021551,2]
[365909313,1749982243861,-840.69,0.00021551,2]
[365909315,1749982243870,-801.24,0.00021551,2]
[365909317,1749982243880,-460.0,0.00021551,2]
[365909319,1749982243890,-1802.56,0.00021551,2]
[365909321,1749982243899,-764.98,0.00021552,2]
[365909323,1749982243908,-1282.49,0.00021552,2]